bitfinex-derivatives/quotes_SOLF0:USTF0_20240905
["timestamp","ask_amount","ask_price","bid_price","bid_amount"]
[1725542835576,0.04746051,133.6,133.59,9.21]
[1725542836378,0.04746051,133.6,133.59,12.9529]
[1725542840685,3.82150344,133.66,133.61,3.7424]
[1725542840882,3.82150344,133.66,133.63,9.21]
[1725542841683,3.86902195,133.66,133.63,9.26463151]
[1725542842591,0.04751851,133.66,133.63,9.26463151]
[1725542843090,3.88399649,133.66,133.63,9.26463151]
[1725542843792,0.04751851,133.66,133.65,9.21]
[1725542843987,0.04751851,133.66,133.64,9.21]
[1725542844987,0.04751851,133.66,133.65,9.21]
[1725542845390,0.04751851,133.66,133.65,12.9513]
[1725542845591,4.1652,133.73,133.65,12.9513]
[1725542845592,3.7398,133.71,133.65,9.21]
[1725542845787,223.0,133.81,133.7,9.21]
[1725542845987,9.21,133.77,133.7,9.21]
[1725542846291,3.7391,133.73,133.7,9.21]
[1725542846683,3.79282905,133.73,133.7,9.25721104]
[1725542846989,3.7393,133.72,133.7,0.04721104]
[1725542847494,0.05372905,133.73,133.71,9.21]
[1725542847694,0.05372905,133.73,133.7,0.04721104]
[1725542847989,0.05372905,133.73,133.7,9.25721104]
[1725542848195,3.79302905,133.73,133.7,9.25721104]
[1725542848599,3.79302905,133.73,133.7,12.99206002]
[1725542848795,0.05372905,133.73,133.71,9.21]
[1725542849098,0.05372905,133.73,133.72,9.21]
[1725542850293,0.05372905,133.73,133.71,9.21]
[1725542850496,0.05372905,133.73,133.7,12.99691104]
[1725542850996,0.05372905,133.73,133.7,9.25721104]
[1725542852394,3.79292905,133.73,133.7,9.25721104]
[1725542853294,3.79292905,133.73,133.71,9.21]
[1725542853495,0.05372905,133.73,133.71,9.21]
[1725542854193,0.05372905,133.73,133.72,9.21]
[1725542854596,0.05372905,133.73,133.71,9.21]
[1725542856002,0.05372905,133.73,133.7,9.25721104]
[1725542856895,3.7396,133.71,133.7,0.04721104]
[1725542858600,3.7394,133.72,133.7,9.25721104]
[1725542859804,3.79302905,133.73,133.7,9.25721104]
[1725542859997,3.79302905,133.73,133.71,9.21]
[1725542859998,0.05372905,133.73,133.71,9.21]
[1725542860399,3.7393,133.72,133.7,0.04721104]
[1725542860598,3.7393,133.72,133.71,9.21]
[1725542861695,3.79282905,133.73,133.71,9.21]
[1725542864501,3.7393,133.72,133.71,9.21]
[1725542868101,3.7396,133.71,133.7,0.04721104]
[1725542868303,0.05372905,133.73,133.7,9.25721104]
[1725542869901,3.7393,133.72,133.7,9.25721104]
[1725542871103,3.7396,133.71,133.7,0.04721104]
[1725542873604,3.7395,133.72,133.7,9.25721104]
[1725542874911,3.79292905,133.73,133.7,12.99691104]
[1725542875404,0.05372905,133.73,133.7,12.99691104]
[1725542876203,3.79282905,133.73,133.7,12.99691104]
[1725542876403,3.79282905,133.73,133.72,9.21]
[1725542878911,3.7393,133.72,133.71,9.21]
[1725542880202,0.05372905,133.73,133.71,9.21]
[1725542880407,0.05372905,133.73,133.7,0.04721104]
[1725542880809,12.9496,133.71,133.7,0.04721104]
[1725542881611,2.7232,133.72,133.58,1.3817]
[1725542881818,9.21,133.69,133.63,100.38622427]
[1725542882111,3.7408,133.67,133.63,104.12792427]
[1725542882312,2.7232,133.72,133.66,9.21]
[1725542882510,0.05644796,133.7,133.68,0.05434215]
[1725542882706,9.26644796,133.7,133.68,0.05434215]
[1725542883217,9.21,133.69,133.63,104.12792427]
[1725542883417,9.21,133.68,133.63,91.17622427]
[1725542883612,3.7417,133.64,133.61,9.21]
[1725542883918,9.21,133.66,133.61,9.21]
[1725542884215,3.7418,133.63,133.62,0.0478411]
[1725542884416,0.05000362,133.65,133.62,9.2578411]
[1725542884811,3.79130362,133.65,133.62,9.2578411]
[1725542885517,3.7416,133.64,133.62,9.2578411]
[1725542886015,0.05000362,133.65,133.62,0.0478411]
[1725542886317,3.7418,133.63,133.62,0.0478411]
[1725542887015,3.7428,133.6,133.57,9.21]
[1725542888008,3.7428,133.6,133.56,26.7536]
[1725542888215,0.05323401,133.59,133.57,0.05158118]
[1725542888718,0.05323401,133.59,133.57,3.79488118]
[1725542889615,0.05323401,133.59,133.58,26.7532]
[1725542892114,3.742,133.63,133.58,23.01]
[1725542892317,25.6199,133.67,133.6,23.01]
[1725542892519,0.27521399,133.66,133.6,23.01]
[1725542892719,0.27521399,133.66,133.59,3.7427]
[1725542892923,23.28521399,133.66,133.58,23.01]
[1725542893124,0.05592757,133.63,133.61,0.05154934]
[1725542893311,3.7423,133.62,133.61,0.05038077]
[1725542894011,0.05592757,133.63,133.61,0.05038077]
[1725542895220,0.05592757,133.63,133.61,3.79268077]
[1725542898619,0.05592757,133.63,133.62,3.7421]
[1725542899220,0.05592757,133.63,133.62,26.7521]
[1725542899817,23.01,133.71,133.64,3.7413]
[1725542900127,25.6731,133.72,133.63,23.01]
[1725542900818,0.04892908,133.69,133.63,23.01]
[1725542901021,0.04892908,133.69,133.66,0.04996338]
[1725542901329,3.7406,133.68,133.66,0.04996338]
[1725542901528,0.04892908,133.69,133.66,0.04996338]
[1725542902027,0.04892908,133.69,133.66,23.05996338]
[1725542902223,0.04892908,133.69,133.67,3.7405]
[1725542903020,0.04892908,133.69,133.66,0.04996338]
[1725542903527,0.04892908,133.69,133.66,3.79076338]
[1725542904927,0.04892908,133.69,133.66,0.04996338]
[1725542904928,3.7405,133.68,133.66,0.04996338]
[1725542907234,3.78912908,133.69,133.66,3.79076338]
[1725542910435,0.04892908,133.69,133.66,23.05996338]
[1725542910940,0.04892908,133.69,133.66,0.04996338]
[1725542911435,3.7404,133.68,133.66,0.04996338]
[1725542912831,0.04892908,133.69,133.66,0.04996338]
[1725542913027,3.78912908,133.69,133.66,26.80096338]
[1725542913228,0.04892908,133.69,133.66,23.05996338]
[1725542913431,0.04892908,133.69,133.66,0.04996338]
[1725542914838,3.7407,133.67,133.66,0.04996338]
[1725542916941,3.7405,133.68,133.66,0.04996338]
[1725542918042,3.7407,133.67,133.66,0.04996338]
[1725542919237,3.7405,133.68,133.66,0.04996338]
[1725542921945,3.78912908,133.69,133.66,12.98086338]
[1725542922639,3.78912908,133.69,133.67,9.19]
[1725542926541,0.04892908,133.69,133.67,12.9307]
[1725542928739,0.04892908,133.69,133.67,16.66348868]
[1725542930743,0.04892908,133.69,133.68,3.7404]
[1725542931045,0.04892908,133.69,133.68,12.9304]
[1725542931750,12.90455024,133.75,133.68,9.19]
[1725542931751,3.71455024,133.75,133.68,9.19]
[1725542932042,9.19,133.77,133.7,9.19]
[1725542932244,9.19,133.76,133.7,12.9296]
[1725542932546,0.05227004,133.74,133.72,0.05755203]
[1725542932744,3.7392,133.73,133.72,0.05755203]
[1725542936045,3.79117004,133.74,133.72,0.05755203]
[1725542939047,3.739,133.73,133.72,0.05755203]
[1725542939851,0.05227004,133.74,133.72,0.05755203]
[1725542939852,3.79117004,133.74,133.72,0.05755203]
[1725542940253,3.79117004,133.74,133.72,9.24755203]
[1725542940749,3.739,133.73,133.72,0.05755203]
[1725542941850,12.929,133.73,133.72,0.05755203]
[1725542942059,13.225,133.73,133.66,9.19]
[1725542942254,13.225,133.73,133.68,9.19]
[1725542942451,3.7395,133.72,133.68,9.19]
[1725542942656,13.225,133.73,133.68,9.19]
[1725542943057,0.05580406,133.72,133.69,0.052469]
[1725542944456,3.7399,133.7,133.69,0.052469]
[1725542948465,3.7397,133.71,133.69,0.052469]
[1725542948766,3.7397,133.71,133.69,9.242469]
[1725542950265,0.05580406,133.72,133.69,9.242469]
[1725542951061,0.05580406,133.72,133.69,0.052469]
[1725542952353,3.7399,133.7,133.69,0.052469]
[1725542956372,3.7399,133.7,133.69,9.242469]
[1725542957775,0.05580406,133.72,133.69,9.242469]
[1725542957966,0.05580406,133.72,133.71,9.19]
[1725542958171,0.27499772,133.78,133.71,9.19]
[1725542958372,4.01279772,133.78,133.75,9.19]
[1725542958674,3.7378,133.78,133.75,9.19]
[1725542959167,3.7857001,133.78,133.75,9.23732187]
[1725542959669,0.0479001,133.78,133.76,9.19]
[1725542959978,0.0479001,133.78,133.75,0.04732187]
[1725542961263,1.3204001,133.78,133.75,0.04732187]
[1725542962273,3.7379,133.77,133.75,0.04732187]
[1725542962971,1.3204001,133.78,133.75,0.04732187]
[1725542963670,5.0582001,133.78,133.75,0.04732187]
[1725542963868,1.3204001,133.78,133.75,0.04732187]
[1725542964271,3.7381,133.77,133.75,0.04732187]
[1725542965568,5.0581001,133.78,133.75,0.04732187]
[1725542965972,3.7856001,133.78,133.75,0.04732187]
[1725542966173,3.7856001,133.78,133.76,22.98]
[1725542966174,0.0479001,133.78,133.76,22.98]
[1725542967276,0.0479001,133.78,133.76,26.7181]
[1725542968578,0.0479001,133.78,133.77,26.7179]
[1725542969475,1.3648,133.84,133.79,3.7373]
[1725542969782,0.27488139,133.83,133.8,22.98]
[1725542969977,3.7367,133.82,133.8,22.98]
[1725542970274,1.3648,133.84,133.8,22.98]
[1725542970481,3.7366,133.82,133.81,0.0475737]
[1725542972583,0.05113751,133.83,133.81,23.0275737]
[1725542973483,3.7352,133.87,133.81,22.98]
[1725542973683,3.9934,133.9,133.84,22.98]
[1725542973880,0.27479386,133.89,133.84,22.98]
[1725542974086,3.7355,133.86,133.84,22.98]
[1725542974378,7.71947532,133.9,133.84,22.98]
[1725542974585,0.05292518,133.88,133.86,0.05009724]
[1725542976077,3.78802518,133.88,133.86,0.05009724]
[1725542978385,223.0,134.0,133.86,26.76539724]
[1725542978582,0.27474551,133.95,133.89,22.98]
[1725542979087,3.734,133.92,133.89,22.98]
[1725542979588,3.77443671,133.92,133.89,23.02992164]
[1725542980180,0.04043671,133.92,133.91,22.98]
[1725542981986,0.04043671,133.92,133.89,23.02992164]
[1725542982483,3.77433671,133.92,133.89,23.02992164]
[1725542982689,0.04043671,133.92,133.89,23.02992164]
[1725542983388,3.77433671,133.92,133.89,23.02992164]
[1725542983586,0.04043671,133.92,133.89,0.04992164]
[1725542983886,3.7341,133.91,133.89,0.04992164]
[1725542985483,3.77433671,133.92,133.89,0.04992164]
[1725542986093,3.734,133.91,133.89,0.04992164]
[1725542986889,3.7343,133.9,133.89,0.04992164]
[1725542987093,0.04043671,133.92,133.89,0.04992164]
[1725542987389,3.7343,133.9,133.89,0.04992164]
[1725542990891,3.7341,133.91,133.89,0.04992164]
[1725542991092,0.04043671,133.92,133.89,0.04992164]
[1725542991288,3.77433671,133.92,133.89,23.02992164]
[1725542991887,0.04043671,133.92,133.89,23.02992164]
[1725542992095,0.04043671,133.92,133.91,22.98]
[1725542994686,7.4601,134.06,133.91,22.98]
[1725542994885,3.7318,133.99,133.96,22.98]
[1725542995090,1.378,134.03,133.98,22.98]
[1725542995292,0.27454993,134.02,133.98,22.98]
[1725542995594,3.7314,134.01,133.99,0.04890159]
[1725542995897,3.68603869,134.02,133.99,0.04890159]
[1725542996097,5.1087,134.03,133.99,0.04890159]
[1725542996293,2.659,134.05,133.99,0.04890159]
[1725542996294,2.659,134.05,134.01,22.98]
[1725542996792,3.64682154,134.06,134.01,22.98]
[1725542997097,6.36253758,134.08,134.02,0.05530916]
[1725542997300,1.3158,134.07,134.02,0.05530916]
[1725542997687,3.7304,134.04,134.02,0.05530916]
[1725542997992,1.3158,134.07,134.02,0.05530916]
[1725542998195,0.27442015,134.06,134.02,0.05530916]
[1725542998501,3.7306,134.03,134.02,0.05530916]
[1725543000187,1.3158,134.07,134.02,0.05530916]
[1725543000386,1.3158,134.07,134.03,22.98]
[1725543000597,1.3158,134.07,134.02,0.05530916]
[1725543000799,5.10219143,134.07,134.03,22.98]
[1725543001094,3.81483692,134.07,134.03,22.98]
[1725543001285,3.73,134.06,134.03,22.98]
[1725543001484,3.81483692,134.07,134.03,22.98]
[1725543001695,1.3194,134.08,134.02,23.03530916]
[1725543002491,5.08124789,134.08,134.02,0.05530916]
[1725543002700,0.27441174,134.07,134.02,0.05530916]
[1725543002897,27.07895088,134.07,134.02,0.05530916]
[1725543003092,3.7319,133.99,133.95,7.47290449]
[1725543003292,3.78386446,134.07,133.98,22.98]
[1725543003498,1.3194,134.08,134.01,22.98]
[1725543003499,3.7306,134.03,134.01,22.98]
[1725543003700,5.12789317,134.08,134.01,22.98]
[1725543003995,3.7304,134.04,134.01,22.98]
[1725543004195,3.76717047,134.06,134.03,0.05472189]
[1725543004401,0.05383366,134.06,134.03,0.05472189]
[1725543004699,3.72015204,134.06,134.03,0.05472189]
[1725543004898,0.05383366,134.06,134.03,23.03472189]
[1725543005102,0.05383366,134.06,134.05,22.98]
[1725543005800,0.05383366,134.06,134.05,26.7101]
[1725543006100,0.05383366,134.06,134.05,22.98]
[1725543006499,6.39475222,134.11,134.05,22.98]
[1725543006500,2.715,134.11,134.05,22.98]
[1725543006706,2.7473,134.15,134.07,22.98]
[1725543007001,0.2742874,134.14,134.09,22.98]
[1725543007205,0.2742874,134.14,134.07,22.98]
[1725543007603,0.2742874,134.14,134.09,0.05092302]
[1725543008300,4.0189,134.15,134.09,0.05092302]
[1725543008806,3.82320958,134.14,134.09,0.05092302]
[1725543009015,4.0189,134.15,134.09,0.05092302]
[1725543009299,3.7286,134.11,134.09,0.05092302]
[1725543009904,3.7287,134.1,134.09,0.05092302]
[1725543010306,22.98,134.14,134.09,0.05092302]
[1725543010513,7.7641458,134.15,134.09,0.05092302]
[1725543011100,3.7285,134.11,134.09,0.05092302]
[1725543011305,7.7641458,134.15,134.09,0.05092302]
[1725543011603,22.98,134.17,134.09,0.05092302]
[1725543011604,3.73908908,134.17,134.12,22.98]
[1725543011804,3.73908908,134.17,134.13,0.04728901]
[1725543011805,3.7275,134.15,134.13,0.04728901]
[1725543012203,1.2746,134.24,134.14,22.98]
[1725543012409,2.6661,134.21,134.18,0.05165955]
[1725543012711,3.7262,134.19,134.18,0.05165955]
[1725543013004,2.6661,134.21,134.18,0.05165955]
[1725543014206,1.2746,134.24,134.18,0.05165955]
[1725543014405,0.27412697,134.23,134.18,23.03165955]
[1725543014601,4.0577,134.24,134.18,23.03165955]
[1725543015007,3.7253,134.23,134.18,26.75805955]
[1725543015207,7.73565093,134.24,134.18,23.03165955]
[1725543015406,0.27409531,134.23,134.18,23.03165955]
[1725543015911,3.7257,134.21,134.18,23.03165955]
[1725543016613,23.25411865,134.2,134.01,7.4624]
[1725543016815,0.27411865,134.19,134.1,22.98]
[1725543017007,0.27411865,134.19,134.1,26.77251823]
[1725543017611,0.27411865,134.19,134.12,22.98]
[1725543017916,0.05173796,134.17,134.14,0.04937588]
[1725543018110,3.7275,134.15,134.14,0.04937588]
[1725543019211,1.273,134.16,134.01,3.73312952]
[1725543019515,22.98,134.11,134.02,22.98]
[1725543019711,3.7306,134.04,134.01,3.73312952]
[1725543019912,3.7306,134.04,134.0,22.98]
[1725543020112,22.98,134.07,133.98,22.98]
[1725543020414,1.3147,134.08,134.0,22.98]
[1725543020612,3.70390819,134.07,134.02,22.92]
[1725543020812,0.04746008,134.05,134.03,0.05391826]
[1725543021020,3.7304,134.04,134.03,0.05391826]
[1725543021320,0.04746008,134.05,134.03,0.05391826]
[1725543021513,0.04746008,134.05,134.04,22.92]
[1725543021916,0.04746008,134.05,134.04,28.64]
[1725543022115,3.68002164,134.11,134.04,28.64]
[1725543022312,1.3524,134.12,134.04,28.64]
[1725543022713,3.7287,134.1,134.06,28.64]
[1725543023216,0.04773515,134.09,134.08,28.64]
[1725543023411,0.05365376,134.1,134.08,28.64]
[1725543023811,0.05365376,134.1,134.07,28.69328134]
[1725543024012,0.05365376,134.1,134.07,0.05328134]
[1725543024212,3.729,134.09,134.07,0.05328134]
[1725543024422,0.05365376,134.1,134.07,0.05328134]
[1725543024819,3.78245376,134.1,134.07,0.05328134]
[1725543025019,3.78245376,134.1,134.07,28.69328134]
[1725543025321,0.05365376,134.1,134.07,28.69328134]
[1725543025723,0.05365376,134.1,134.07,0.05328134]
[1725543025929,3.7293,134.08,134.07,0.05328134]
[1725543026120,28.64,134.09,133.99,28.64]
[1725543026418,1.3193,134.07,133.99,28.64]
[1725543026623,1.3193,134.07,133.99,32.41071589]
[1725543027015,3.78405894,134.04,133.99,32.41071589]
[1725543027318,3.78405894,134.04,133.96,1.3406]
[1725543027319,0.05355894,134.04,134.02,28.68712303]
[1725543027520,0.05355894,134.04,134.02,28.69623843]
[1725543028222,0.05355894,134.04,134.02,32.42713843]
[1725543028423,2.6782,134.11,134.02,28.64]
[1725543028620,2.6782,134.11,134.05,28.64]
[1725543028922,1.3838,134.12,134.06,3.76362457]
[1725543029130,1.3838,134.12,134.05,28.64]
[1725543029420,0.05337616,134.1,134.07,0.05326386]
[1725543029630,3.7293,134.08,134.07,0.05326386]
[1725543029819,2.6563,134.09,134.0,32.3714]
[1725543030020,2.6563,134.09,134.0,28.64]
[1725543030321,2.6563,134.09,134.02,28.64]
[1725543030622,1.3272,134.09,134.02,28.64]
[1725543030823,0.05027677,134.07,134.04,0.05081279]
[1725543031720,0.05027677,134.07,134.06,28.64]
[1725543031928,0.05027677,134.07,134.06,32.45035898]
[1725543032124,1.3838,134.12,134.06,32.45035898]
[1725543032519,2.6997,134.17,134.08,28.64]
[1725543032718,2.6997,134.17,134.1,28.64]
[1725543033129,0.05117989,134.15,134.12,0.0494705]
[1725543033719,3.7279,134.13,134.12,0.0494705]
[1725543033924,3.74701845,134.13,134.05,28.64]
[1725543034225,3.7293,134.08,134.05,28.64]
[1725543034531,3.7293,134.08,134.03,28.64]
[1725543034726,3.7296,134.07,134.03,28.64]
[1725543034925,0.04926747,134.06,134.04,0.05532027]
[1725543035228,3.7301,134.05,134.04,0.05655866]
[1725543035924,3.7313,134.01,133.97,28.64]
[1725543036126,28.64,134.08,133.97,28.64]
[1725543036320,0.27441655,134.07,133.97,28.64]
[1725543036929,0.05434976,134.03,134.01,0.05597535]
[1725543037424,0.05434976,134.03,133.87,3.65856386]
[1725543037425,3.7327,133.96,133.87,3.65856386]
[1725543037625,29.998,134.02,133.91,28.64]
[1725543037927,1.358,134.02,133.95,28.64]
[1725543038128,5.04519212,134.02,133.95,28.64]
[1725543038328,1.358,134.02,133.95,28.64]
[1725543038627,3.7318,134.0,133.95,28.64]
[1725543038820,0.05528246,134.0,133.97,28.69293014]
[1725543039129,0.05528246,134.0,133.99,28.64]
[1725543039733,0.05528246,134.0,133.99,32.3718]
[1725543040029,0.05528246,134.0,133.99,28.64]
[1725543040921,0.05528246,134.0,133.97,0.05293014]
[1725543041329,3.7319,133.99,133.97,0.05293014]
[1725543041526,0.05528246,134.0,133.97,0.05293014]
[1725543041726,28.64,133.98,133.88,36.3958]
[1725543041925,1.3046,133.99,133.86,28.64]
[1725543042230,28.64,133.96,133.87,3.735]
[1725543042534,1.331,133.95,133.87,32.375]
[1725543042732,0.05498794,133.92,133.9,0.05130068]
[1725543044136,3.734,133.91,133.9,0.05130068]
[1725543044335,0.05498794,133.92,133.9,0.05130068]
[1725543044929,0.05498794,133.92,133.84,28.64]
[1725543045229,28.69498794,133.92,133.82,28.64]
[1725543045440,28.64,133.92,133.82,28.64]
[1725543045629,28.64,133.92,133.83,3.7361]
[1725543045828,28.64,133.9,133.8,32.6179]
[1725543046028,0.05698716,133.86,133.84,0.05662398]
[1725543047838,3.79248716,133.86,133.84,0.05662398]
[1725543048330,0.05698716,133.86,133.84,0.05662398]
[1725543048832,28.69698716,133.86,133.76,32.5716]
[1725543049028,28.64,133.86,133.76,28.64]
[1725543049339,28.64,133.86,133.77,3.7379]
[1725543049931,28.64,133.86,133.8,0.05433925]
[1725543049932,0.05422499,133.83,133.8,0.05433925]
[1725543050436,3.79062499,133.83,133.8,0.05433925]
[1725543050631,0.05422499,133.83,133.8,3.79133925]
[1725543050931,0.05422499,133.83,133.8,0.05433925]
[1725543052132,3.7365,133.82,133.8,0.05433925]
[1725543052431,0.05422499,133.83,133.8,0.05433925]
[1725543052737,0.05422499,133.83,133.71,28.64]
[1725543052738,28.64,133.82,133.71,28.64]
[1725543052932,28.64,133.82,133.71,3.678032]
[1725543052933,2.7124,133.81,133.71,3.678032]
[1725543053136,2.7124,133.81,133.71,28.64]
[1725543053335,2.7124,133.81,133.73,28.64]
[1725543053528,1.3531,133.81,133.75,28.64]
[1725543053833,0.04744692,133.79,133.77,0.05484627]
[1725543054035,0.04744692,133.79,133.77,0.05439131]
[1725543054238,3.7376,133.78,133.77,0.05439131]
[1725543054835,3.7384,133.76,133.7,31.3558]
[1725543055032,29.9931,133.81,133.71,28.64]
[1725543055239,1.3531,133.81,133.76,28.64]
[1725543055440,3.7363,133.83,133.78,3.7374]
[1725543055640,3.7363,133.83,133.78,32.3774]
[1725543055937,1.3593,133.85,133.79,0.04718725]
[1725543055938,0.05632236,133.82,133.79,0.04718725]
[1725543058539,3.7369,133.81,133.79,0.04718725]
[1725543058738,0.05632236,133.82,133.79,0.04718725]
[1725543059742,3.79292236,133.82,133.79,0.04718725]
[1725543060042,0.05632236,133.82,133.79,0.04718725]
[1725543062138,11.20578147,133.96,133.81,28.64]
[1725543062339,1.3891,133.95,133.85,28.64]
[1725543062537,1.3891,133.95,133.87,28.64]
[1725543062735,3.7333,133.94,133.89,3.7344]
[1725543062935,28.64,133.99,133.89,28.64]
[1725543063138,0.04820188,133.95,133.93,0.04717626]
[1725543063745,3.7317,134.0,133.94,3.7329]
[1725543063943,3.7317,134.0,133.93,34.41]
[1725543064138,5.2079682,134.03,133.93,34.41]
[1725543064338,1.3891,134.03,133.93,34.41]
[1725543064735,0.04756187,133.99,133.97,0.0525608]
[1725543067040,3.7302,134.05,133.97,34.4625608]
[1725543067344,1.2753,134.08,133.99,34.41]
[1725543067543,1.2753,134.08,133.99,38.19145299]
[1725543067845,3.7298,134.07,133.99,38.19145299]
[1725543068047,0.05569704,134.04,134.02,0.05426775]
[1725543068944,3.7306,134.03,134.02,0.05426775]
[1725543069642,3.7306,134.03,133.9,1.2699]
[1725543069643,3.76035808,134.03,133.92,34.41]
[1725543069844,1.2753,134.08,133.92,34.41]
[1725543069845,34.41,134.02,133.92,34.41]
[1725543070144,3.7322,133.98,133.92,34.41]
[1725543070343,1.3741,134.01,133.92,34.41]
[1725543070549,0.05446081,133.98,133.95,0.04962507]
[1725543070744,0.05649436,133.98,133.95,0.04926612]
[1725543071653,0.05649436,133.98,133.95,3.78196612]
[1725543072547,0.05649436,133.98,133.96,3.7325]
[1725543072751,1.3741,134.07,133.97,34.41]
[1725543072954,1.3741,134.07,133.99,34.41]
[1725543073446,1.3741,134.07,134.0,3.7315]
[1725543073447,3.7306,134.04,134.0,3.7315]
[1725543073755,0.0507543,134.03,134.01,0.0531546]
[1725543074047,3.7814543,134.03,134.01,0.0531546]
[1725543074946,0.0507543,134.03,134.01,0.0531546]
[1725543075646,34.41,134.14,134.01,34.4631546]
[1725543075852,3.73,134.06,134.01,34.41]
[1725543076449,3.9785,134.13,134.03,34.41]
[1725543076649,0.0479353,134.09,134.07,0.0499185]
[1725543079154,3.81267606,134.17,134.08,34.41]
[1725543079349,38.3861,134.18,134.08,34.41]
[1725543079657,0.27420387,134.17,134.06,34.41]
[1725543079952,3.7284,134.11,134.06,34.41]
[1725543080347,0.04765818,134.1,134.07,0.0537144]
[1725543080655,0.05550892,134.1,134.07,0.05462436]
[1725543085252,2.81430892,134.1,134.07,0.05462436]
[1725543085453,3.7293,134.08,134.07,0.05462436]
[1725543085663,3.645172,134.08,133.99,31.3194]
[1725543085953,28.63,134.05,133.95,28.63]
[1725543086657,28.63,134.05,133.92,1.3622]
[1725543086658,1.3706,134.07,133.98,28.63]
[1725543086855,0.05611082,134.04,134.01,0.05642999]
[1725543087052,3.7309,134.02,134.01,0.05642999]
[1725543088754,3.7307,134.03,134.01,0.05642999]
[1725543088951,0.05611082,134.04,134.01,0.05642999]
[1725543089364,3.7308,134.03,134.01,0.05642999]
[1725543089660,0.05611082,134.04,134.01,0.05642999]
[1725543090452,28.63,134.02,133.93,28.63]
[1725543090659,28.63,134.02,133.93,32.41658345]
[1725543090960,28.63,134.04,133.96,28.63]
[1725543091156,28.63,134.06,133.96,28.63]
[1725543091359,28.63,134.06,133.93,3.78658345]
[1725543091360,3.7307,134.03,133.97,28.63]
[1725543091561,0.05530771,134.02,134.0,0.05175901]
[1725543091755,0.05530771,134.02,134.0,0.05484204]
[1725543092160,3.7312,134.01,134.0,0.05484204]
[1725543092357,0.05530771,134.02,133.92,29.9922]
[1725543092358,28.68530771,134.02,133.92,29.9922]
[1725543092558,33.76515975,134.07,133.88,32.3647]
[1725543092559,3.7334,133.93,133.88,32.3647]
[1725543092752,3.7334,133.93,133.79,263.1044]
[1725543092753,28.63,133.96,133.86,31.3615]
[1725543093059,29.9414,134.0,133.86,31.3615]
[1725543093060,28.63,133.98,133.86,31.3615]
[1725543093260,0.05110138,133.93,133.91,0.05270653]
[1725543093460,0.05738413,133.93,133.91,0.05270653]
[1725543093857,1.36878413,133.93,133.91,0.05270653]
[1725543094059,3.7337,133.92,133.91,0.05270653]
[1725543094257,1.36878413,133.93,133.91,0.05270653]
[1725543094655,0.05738413,133.93,133.91,0.05270653]
[1725543096664,0.05738413,133.93,133.84,28.63]
[1725543096861,28.63,133.95,133.84,28.63]
[1725543097065,3.7338,133.92,133.86,3.7351]
[1725543097368,3.7338,133.92,133.86,28.63]
[1725543097566,3.7338,133.92,133.88,3.78606105]
[1725543097567,0.05103343,133.9,133.88,3.78606105]
[1725543099067,0.05103343,133.9,133.89,3.7345]
[1725543099470,0.05103343,133.9,133.88,28.68126105]
[1725543099666,0.05103343,133.9,133.88,0.05126105]
[1725543099873,0.05103343,133.9,133.88,3.78596105]
[1725543100070,0.05103343,133.9,133.88,0.05126105]
[1725543100567,1.3114,133.98,133.88,28.63]
[1725543100867,3.7336,133.93,133.89,3.7343]
[1725543101274,3.76746096,133.95,133.86,28.63]
[1725543101473,3.7339,133.92,133.88,3.7348]
[1725543101673,0.052549,133.91,133.89,0.05270855]
[1725543101876,0.05692331,133.91,133.89,28.68452736]
[1725543102075,0.05692331,133.91,133.89,32.41882736]
[1725543102467,0.05692331,133.91,133.89,28.68452736]
[1725543102670,0.05692331,133.91,133.9,3.7343]
[1725543103277,29.9414,133.98,133.93,3.7334]
[1725543103278,1.3114,133.98,133.93,3.7334]
[1725543103675,5.0436,133.98,133.92,32.30147232]
[1725543103873,1.3114,133.98,133.94,3.7331]
[1725543104070,1.3114,133.98,133.92,28.63]
[1725543104071,29.9743,134.02,133.92,32.39624346]